Workbook

Sheet 封面
A1: 附件一（续）
A11: 涪陵高新区2023年预算执行情况和 2024年预算
A43: 2024-01-01

Sheet 目录
B1: 目 录
B2: 一、2023年预算执行
B3: 1、一般公共预算
B4: 表1：2023年高新区一般公共预算收支执行表
B5: 表2：2023年高新区一般公共预算本级支出执行表
B6: 表3：2023年高新区一般公共预算转移支付支出执行表（分地区）
B7: 表4：2023年高新区一般公共预算转移支付支出执行表（分项目）
B8: 2、政府性基金预算
B9: 表5：2023年高新区政府性基金预算收支执行表
B10: 表6：2023年高新区政府性基金预算本级支出执行表
B11: 表7：2023年高新区政府性基金转移支付收支执行表
B12: 表8：2023年高新区政府性基金转移支付支出执行表（分地区）
B13: 表9：2023年高新区政府性基金转移支付支出执行表（分项目）
B14: 3、国有资本经营预算
B15: 表10：2023年高新区国有资本经营预算收支执行表
B16: 4、社会保险基金预算
B17: 表11：2023年高新区社会保险基金预算收支执行表
B18: 表12：2023年高新区社会保险基金预算结余执行表
B20: 二、2024年预算安排
B21: 1、一般公共预算
B22: 表13：2024年高新区一般公共预算收支预算表
B23: 表14：2024年高新区一般公共预算本级支出预算表
B24: 表15：2024年高新区一般公共预算本级支出预算表 （按功能分类科目的基本支出和项目支出）
B25: 表16：2024年高新区一般公共预算本级基本支出预算表 （按经济分类科目）
B26: 表17：2024年高新区一般公共预算转移支付支出预算表（分地区）
B27: 表18：2024年高新区一般公共预算转移支付支出预算表（分项目）
B28: 2、政府性基金预算
B29: 表19：2024年高新区政府性基金预算收支预算表
B30: 表20：2024年高新区政府性基金预算本级支出预算表
B31: 表21：2024年高新区政府性基金预算转移支付收支预算表
B32: 表22：2024年高新区政府性基金预算转移支付支出预算表（分地区）
B33: 表23：2024年高新区政府性基金预算转移支付支出预算表（分项目）
B34: 3、国有资本经营预算
B35: 表24：2024年高新区国有资本经营预算收支预算表
B36: 4、社会保险基金预算
B37: 表25：2024年高新区社会保险基金预算收支预算表
B38: 表26：2024年高新区社会保险基金预算结余预算表
B39: 5、“三公”经费预算
B40: 表27：2024年高新区“三公”经费预算表
B42: 三、债务管控情况
B43: 表28：涪陵高新区2023年地方政府债券使用情况表
B44: 表29：涪陵高新区2024年地方政府债券资金安排表

Sheet 01-2023公共平衡
A1: 表1
A2: 2023年高新区一般公共预算收支执行表
L3: 单位：万元
A4: 收 入 | B4: 预算数 | C4: 调整 预算数 | D4: 执行数 | E4: 执行数 为调整 预算数的% | F4: 执行数为 上年决算 数的% | G4: 支 出 | H4: 预算数 | I4: 调整 预算数 | J4: 执行数 | K4: 执行数 为调整 预算数的% | L4: 执行数为 上年决算 数的%
A5: 总 计 | B5: =B6+B32 -> 146,127 | C5: =C6+C32 -> 147,292 | D5: 135,643 | E5: =D5/C5 -> 92% | G5: 总 计 | H5: 146,127 | I5: 147,292 | J5: 135,643 | K5: =J5/I5 -> 92%
A6: 本级收入合计 | B6: =B7+B23 -> 83,750 | C6: =C7+C23 -> 132,003 | D6: =D7+D23 -> 86,858 | E6: =D6/C6 -> 66% | F6: 114% | G6: 本级支出合计 | H6: =SUM(H7:H31) -> 133,832 | I6: 128,997 | J6: 118,417 | K6: =J6/I6 -> 92% | L6: 167%
A7: 一、税收收入 | B7: =SUM(B8:B22) -> 83,096 | C7: =SUM(C8:C22) -> 83,096 | D7: =SUM(D8:D22) -> 81,723 | E7: 98% | F7: 108% | G7: 一、一般公共服务支出 | H7: 14,860 | I7: 12,055 | J7: 12,600 | K7: =J7/I7 -> 105% | L7: 119%
A8: 增值税 | B8: 15,520 | C8: 27,407 | D8: 26,293 | E8: 96% | F8: 187% | G8: 二、外交支出 | I8: 0
A9: 企业所得税 | B9: 22,500 | C9: 7,459 | D9: 6,770 | E9: 91% | F9: 28% | G9: 三、国防支出 | I9: 3 | J9: 3 | K9: =J9/I9 -> 100%
A10: 个人所得税 | B10: 6,280 | C10: 4,000 | D10: 3,239 | E10: 81% | F10: 57% | G10: 四、公共安全支出 | H10: 600 | I10: 580 | J10: 596 | K10: 103% | L10: 112%
A11: 资源税 | B11: 21 | C11: 0 | F11: 0% | G11: 五、教育支出 | I11: 2,000 | K11: 0%
A12: 城市维护建设税 | B12: 5,800 | C12: 6,100 | D12: 6,082 | E12: 100% | F12: 115% | G12: 六、科学技术支出 | H12: 10,000 | I12: 8,000 | J12: 7,657 | K12: 96%
A13: 房产税 | B13: 4,800 | C13: 6,678 | D13: 6,804 | E13: 102% | F13: 149% | G13: 七、文化旅游体育与传媒支出 | H13: 266 | I13: 266 | J13: 282 | K13: 106% | L13: 97%
A14: 印花税 | B14: 3,220 | C14: 3,220 | D14: 3,231 | E14: 100% | F14: 106% | G14: 八、社会保障和就业支出 | H14: 724 | I14: 733 | J14: 810 | K14: 111% | L14: 118%
A15: 城镇土地使用税 | B15: 7,730 | C15: 14,282 | D15: 14,220 | E15: 100% | F15: 194% | G15: 九、卫生健康支出 | H15: 190 | I15: 478 | J15: 465 | K15: 97% | L15: 124%
A16: 土地增值税 | B16: 580 | C16: 385 | D16: 151 | E16: 39% | F16: -3% | G16: 十、节能环保支出 | H16: 206 | I16: 214 | J16: 250 | K16: 117% | L16: 101%
A17: 耕地占用税 | B17: 525 | C17: 2,870 | D17: 2,875 | E17: 100% | F17: 601% | G17: 十一、城乡社区支出 | H17: 14,374 | I17: 43,478 | J17: 33,091 | K17: 76% | L17: 356%
A18: 契税 | B18: 16,000 | C18: 10,627 | D18: 11,947 | E18: 112% | F18: 75% | G18: 十二、农林水支出 | H18: 418 | I18: 1,688 | J18: 1,745 | K18: 103% | L18: 358%
A19: 烟叶税 | G19: 十三、交通运输支出 | I19: 0 | L19: 0%
A20: 环境保护税 | B20: 120 | C20: 68 | D20: 111 | E20: 163% | F20: =D20/C20 -> 163% | G20: 十四、资源勘探工业信息等支出 | H20: 88,560 | I20: 55,856 | J20: 58,575 | K20: =J20/I20 -> 105% | L20: 122%
A21: 车船税 | G21: 十五、商业服务业等支出 | I21: 0
A22: 其他税收收入 | G22: 十六、金融支出 | I22: 0
A23: 二、非税收入 | B23: =SUM(B24:B30) -> 654 | C23: =SUM(C24:C30) -> 48,907 | D23: =SUM(D24:D30) -> 5,135 | E23: 10% | F23: 826% | G23: 十七、援助其他地区支出 | I23: 0
A24: 专项收入 | G24: 十八、自然资源海洋气象等支出 | I24: 0 | L24: 0%
A25: 行政事业性收费收入 | B25: 29 | C25: 2,999 | D25: 3,065 | E25: 102% | F25: 10946% | G25: 十九、住房保障支出 | H25: 2,334 | I25: 2,346 | J25: 2,343 | K25: =J25/I25 -> 100% | L25: 1464%
A26: 罚没收入 | C26: 2 | D26: 11 | E26: 550% | G26: 二十、粮油物资储备支出 | I26: 0
A27: 国有资源(资产)有偿使用收入 | B27: 625 | C27: 45,905 | D27: 2,059 | E27: 4% | F27: 347% | G27: 二十一、灾害防治及应急管理支出 | I27: 0
A28: 捐赠收入 | G28: 二十二、预备费 | H28: 1,300 | I28: 1,300
A29: 政府住房基金收入 | G29: 二十三、其他支出 | I29: 0
A30: 其他收入 | C30: 1 | E30: 0% | G30: 二十四、债务付息支出 | I30: 0
G31: 二十五、债务发行费用支出 | I31: 0
A32: 转移性收入合计 | B32: =SUM(B33:B43) -> 62,377 | C32: =SUM(C33:C43) -> 15,289 | D32: =SUM(D33:D43) -> 48,785 | E32: 319% | G32: 转移性支出合计 | H32: =H33+H34+H35+H38+H39+H43 -> 12,295 | I32: 18,295 | J32: 17,226
A33: 一、上级补助收入 | B33: 4,451 | C33: 8,146 | D33: 20,643 | E33: 253% | G33: 一、上解上级支出 | H33: 12,295 | I33: 18,295 | J33: 14,077
A34: 二、乡镇街道（含高新区）上解收入 | G34: 二、补助乡镇街道（含高新区）支出
A35: 三、动用预算稳定调节基金 | G35: 三、地方政府债务还本支出
A36: 四、调入资金 | B36: 50,839 | C36: 56 | D36: 21,056 | E36: 37600% | G36: 地方政府债券还本支出（本级财力）
A37: 五、地方政府债务收入 | G37: 地方政府债券还本支出（再融资）
A38: 地方政府债券收入(新增） | G38: 四、安排预算稳定调节基金
A39: 地方政府债券收入(再融资） | G39: 五、地方政府债务转贷支出
A40: 地方政府外债借款收入 | G40: 地方政府债券转贷支出（新增）
A41: 六、上年结转 | B41: 7,087 | C41: 7,087 | D41: 7,086 | E41: 100% | G41: 地方政府债券转贷支出（再融资）
A42: 七、区域间转移性收入 | G42: 地方政府外债借款转贷支出
G43: 六、结转下年 | J43: 3,149
A44: 注：1.本表直观反映2023年一般公共预算收入与支出的平衡关系。 2.收入总计（本级收入合计+转移性收入合计）=支出总计（本级支出合计+转移性支出合计）。 3.调整预算数是指根据预算法规定，经区人大常委会审查批准对年初预算进行调整后形成的预算数，下同。

Sheet 02-2023公共本级支出功能
A1: 表2
A2: 2023年高新区一般公共预算本级支出执行表
A4: 单位：万元
A5: 支 出 | B5: 执行数
A6: 一般公共预算支出合计 | B6: 118,417
A7: 一般公共服务支出 | B7: 12,600
A8: 人大事务 | B8: 25
A9: 行政运行 | B9: 25
A10: 政府办公厅(室)及相关机构事务 | B10: 12,432
A11: 行政运行 | B11: 1,448
A12: 一般行政管理事务 | B12: 10,715
A13: 政务公开审批 | B13: 127
A14: 事业运行 | B14: 142
A15: 党委办公厅(室)及相关机构事务 | B15: 143
A16: 行政运行 | B16: 143
A17: 国防支出 | B17: 3
A18: 国防动员 | B18: 3
A19: 其他国防动员支出 | B19: 3
A20: 公共安全支出 | B20: 596
A21: 公安 | B21: 596
A22: 其他公安支出 | B22: 596
A23: 科学技术支出 | B23: 7,657
A24: 技术研究与开发 | B24: 2
A25: 科技成果转化与扩散 | B25: 2
A26: 科技条件与服务 | B26: 7,655
A27: 其他科技条件与服务支出 | B27: 7,655
A28: 文化旅游体育与传媒支出 | B28: 282
A29: 文化和旅游 | B29: 282
A30: 群众文化 | B30: 282
A31: 社会保障和就业支出 | B31: 810
A32: 人力资源和社会保障管理事务 | B32: 290
A33: 其他人力资源和社会保障管理事务支出 | B33: 290
A34: 行政事业单位养老支出 | B34: 429
A35: 机关事业单位基本养老保险缴费支出 | B35: 269
A36: 机关事业单位职业年金缴费支出 | B36: 139
A37: 其他行政事业单位养老支出 | B37: 21
A38: 残疾人事业 | B38: 35
A39: 其他残疾人事业支出 | B39: 35
A40: 退役军人管理事务 | B40: 52
A41: 事业运行 | B41: 41
A42: 其他退役军人事务管理支出 | B42: 11
A43: 其他社会保障和就业支出 | B43: 4
A44: 其他社会保障和就业支出 | B44: 4
A45: 卫生健康支出 | B45: 465
A46: 卫生健康管理事务 | B46: 273
A47: 其他卫生健康管理事务支出 | B47: 273
A48: 行政事业单位医疗 | B48: 192
A49: 行政单位医疗 | B49: 91
A50: 事业单位医疗 | B50: 98
A51: 公务员医疗补助 | B51: 3
A52: 节能环保支出 | B52: 250
A53: 环境保护管理事务 | B53: 250
A54: 其他环境保护管理事务支出 | B54: 250
A55: 城乡社区支出 | B55: 33,091
A56: 城乡社区管理事务 | B56: 802
A57: 城管执法 | B57: 463
A58: 其他城乡社区管理事务支出 | B58: 339
A59: 城乡社区规划与管理 | B59: 3,205
A60: 城乡社区规划与管理 | B60: 3,205
A61: 城乡社区公共设施 | B61: 29,084
A62: 小城镇基础设施建设 | B62: 28,109
A63: 其他城乡社区公共设施支出 | B63: 975
A64: 农林水支出 | B64: 1,745
A65: 农业农村 | B65: 448
A66: 事业运行 | B66: 420
A67: 农村道路建设 | B67: 15
A68: 其他农业农村支出 | B68: 13
A69: 林业和草原 | B69: 17
A70: 林业草原防灾减灾 | B70: 17
A71: 水利 | B71: 14
A72: 农村水利 | B72: 14
A73: 扶贫 | B73: 4
A74: 其他扶贫支出 | B74: 4
A75: 农村综合改革 | B75: 1,262
A76: 对村民委员会和村党支部的补助 | B76: 1,262
A77: 资源勘探工业信息等支出 | B77: 58,575
A78: 制造业 | B78: 915
A79: 其他制造业支出 | B79: 915
A80: 支持中小企业发展和管理支出 | B80: 57,660
A81: 中小企业发展专项 | B81: 1,000
A82: 其他支持中小企业发展和管理支出 | B82: 56,660
A83: 住房保障支出 | B83: 2,343
A84: 保障性安居工程支出 | B84: 2,120
A85: 老旧小区改造 | B85: 2,120
A86: 住房改革支出 | B86: 223
A87: 住房公积金 | B87: 223
A88: 注：本表详细反映2023年一般公共预算本级支出情况，按预算法要求细化到功能分类项级科目。

Sheet 03-2023公共转移支付分地区
A1: 表3
A2: 2023年高新区一般公共预算转移支付支出执行表
A3: （分地区）
E4: 单位：万元
A5: 乡 镇 | C5: 转移支付合计 | D5: 一般性转移支付 | E5: 专项转移支付
A6: 补助乡镇合计
A7: 涪陵高新区
A8: 注：此表无数据。

Sheet 04-2023公共转移支付分项目
A1: 表4
A2: 2023年高新区一般公共预算转移支付支出执行表
A3: （分项目）
B4: 单位：万元
A5: 项 目 | B5: 执行数
A6: 补助乡镇合计
A7: 一、一般性转移支付
A8: 1.税收返还
A9: 2.体制补助
A10: 3.结算补助
A11: 4.其他一般性转移支付
A12: 二、专项转移支付
A13: 1.公共卫生服务补助资金
A14: 2.城镇保障性安居工程补助资金
A15: 3.民政管理事务补助资金
A16: 4.农业资源与生态保护资金
A17: 5.林业生态保护恢复资金
A18: 6.中小微企业发展专项资金
A19: 7.村级组织运转专项补助资金
A20: 8.党龄40年以上老党员生活补助
A21: 9.便民服务中心
A22: 10.基层政权建设项目资金
A23: 11.基层治理（平安及法治建设）奖补资金
A24: 12.“四城同创”工作经费
A25: 13.革命老区建设资金
A26: 14.其他专项转移支付
A27: 注：此表无数据。

Sheet 5-2023基金平衡
A1: 表5
A2: 2023年高新区政府性基金预算收支执行表
J3: =D5-J5 -> 0 | L3: 单位：万元
A4: 收 入 | B4: 预算数 | C4: 调整 预算数 | D4: 执行数 | E4: 执行数 为调整 预算数的% | F4: 执行数为 上年决算 数的% | G4: 支 出 | H4: 预算数 | I4: 调整 预算数 | J4: 执行数 | K4: 执行数 为变动 预算数的% | L4: 执行数为 上年决算 数的%
A5: 总 计 | B5: =B6+B20 -> 307,828 | C5: =C6+C20 -> 236,850 | D5: 239,387 | E5: =D5/C5 -> 101% | G5: 总 计 | H5: 307,828 | I5: 236,850 | J5: 239,387 | K5: =J5/I5 -> 101%
A6: 本级收入合计 | B6: =SUM(B7:B19) -> 304,000 | C6: =SUM(C7:C19) -> 233,022 | D6: 235,559 | E6: =D6/C6 -> 101% | F6: 86% | G6: 本级支出合计 | H6: 178,140 | I6: 169,867 | J6: 189,510 | K6: =J6/I6 -> 112% | L6: 77%
A7: 一、农网还贷资金收入 | G7: 一、文化旅游体育与传媒支出
A8: 二、港口建设费收入 | G8: 二、社会保障和就业支出
A9: 三、国家电影事业发展专项资金收入 | G9: 三、城乡社区支出 | H9: 174,312 | I9: 167,444 | J9: 187,407 | K9: =J9/I9 -> 112% | L9: 76%
A10: 四、城市公用事业附加收入 | G10: 四、农林水支出 | H10: 3,828 | I10: 2,423 | J10: 2,103 | K10: =J10/I10 -> 87% | L10: 166%
A11: 五、国有土地收益基金收入 | B11: 330 | C11: 330 | G11: 五、交通运输支出 | L11: 0%
A12: 六、农业土地开发资金收入 | G12: 六、其他支出
A13: 七、国有土地使用权出让收入 | B13: 299,670 | C13: 230,285 | D13: 232,629 | E13: =D13/C13 -> 101% | F13: 85% | G13: 七、债务付息支出
A14: 八、大中型水库库区基金收入 | G14: 八、债务发行费用支出
A15: 九、彩票公益金收入
A16: 十、小型水库移民扶助基金收入
A17: 十一、污水处理费收入
A18: 十二、彩票发行机构和彩票销售机构的业务费用
A19: 十三、城市基础设施配套费收入 | B19: 4,000 | C19: 2,407 | D19: 2,930 | E19: =D19/C19 -> 122%
A20: 转移性收入合计 | B20: =B21+B22+B23+B26 -> 3,828 | C20: =C21+C22+C23+C26 -> 3,828 | D20: =D21+D22+D23+D26 -> 3,828 | E20: =D20/C20 -> 100% | G20: 转移性支出合计 | H20: =H21+H22+H23++H24+H26+H29 -> 129,688 | I20: =I21+I22+I23++I24+I26+I29 -> 66,983 | J20: =J21+J22+J23++J24+J26+J29 -> 49,877
A21: 一、上级补助收入 | G21: 一、上解上级支出 | H21: 78,849 | I21: 65,578 | J21: 11,026
A22: 二、乡镇街道（含高新区）上解收入 | G22: 二、补助乡镇街道（含高新区）支出
A23: 三、地方政府债务收入 | G23: 三、调出资金 | H23: 50,839 | J23: 21,000
A24: 地方政府债券收入(新增） | G24: 四、地方政府债务还本支出
A25: 地方政府债券收入(再融资） | G25: 地方政府其他债务还本支出
A26: 四、上年结转 | B26: 3,828 | C26: 3,828 | D26: 3,828 | E26: =D26/C26 -> 100% | G26: 五、地方政府债务转贷支出
G27: 地方政府债券转贷支出（新增）
G28: 地方政府债券转贷支出（再融资）
G29: 六、结转下年 | I29: 1,405 | J29: 17,851
A30: 注：1.本表直观反映2023年政府性基金预算收入与支出的平衡关系。 2.收入总计（本级收入合计+转移性收入合计）=支出总计（本级支出合计+转移性支出合计）。

Sheet 6-2023基金支出
A1: 表6
A2: 2023年高新区政府性基金预算本级支出执行表
B3: 单位：万元
A4: 支 出 | B4: 执行数
A5: 本级支出合计 | B5: =B6+B14+B30+B42+B53+B110+B134+B186+B191+B194+B220+B238+B256 -> 189,510
A6: 科学技术支出 | B6: =B7 -> 0
A7: 核电站乏燃料处理处置基金支出 | B7: =SUM(B8:B13) -> 0
A8: 乏燃料运输
A9: 乏燃料离堆贮存
A10: 乏燃料后处理
A11: 高放废物的处理处置
A12: 乏燃料后处理厂的建设、运行、改造和退役
A13: 其他乏燃料处理处置基金支出
A14: 文化旅游体育与传媒支出 | B14: =B15+B21+B27 -> 0
A15: 国家电影事业发展专项资金安排的支出 | B15: =SUM(B16:B20) -> 0
A16: 资助国产影片放映
A17: 资助影院建设
A18: 资助少数民族语电影译制
A19: 购买农村电影公益性放映版权服务
A20: 其他国家电影事业发展专项资金支出
A21: 旅游发展基金支出 | B21: =SUM(B22:B26) -> 0
A22: 宣传促销
A23: 行业规划
A24: 旅游事业补助
A25: 地方旅游开发项目补助
A26: 其他旅游发展基金支出
A27: 国家电影事业发展专项资金对应专项债务收入安排的支出 | B27: =SUM(B28:B29) -> 0
A28: 资助城市影院
A29: 其他国家电影事业发展专项资金对应专项债务收入支出
A30: 社会保障和就业支出 | B30: =B31+B35+B39 -> 0
A31: 大中型水库移民后期扶持基金支出 | B31: =SUM(B32:B34) -> 0
A32: 移民补助
A33: 基础设施建设和经济发展
A34: 其他大中型水库移民后期扶持基金支出
A35: 小型水库移民扶助基金安排的支出 | B35: =SUM(B36:B38) -> 0
A36: 移民补助
A37: 基础设施建设和经济发展
A38: 其他小型水库移民扶助基金支出
A39: 小型水库移民扶助基金对应专项债务收入安排的支出 | B39: =SUM(B40:B41) -> 0
A40: 基础设施建设和经济发展
A41: 其他小型水库移民扶助基金对应专项债务收入安排的支出
A42: 节能环保支出 | B42: =B43+B48 -> 0
A43: 可再生能源电价附加收入安排的支出 | B43: =SUM(B44:B47) -> 0
A44: 风力发电补助
A45: 太阳能发电补助
A46: 生物质能发电补助
A47: 其他可再生能源电价附加收入安排的支出
A48: 废弃电器电子产品处理基金支出 | B48: =SUM(B49:B52) -> 0
A49: 回收处理费用补贴
A50: 信息系统建设
A51: 基金征管经费
A52: 其他废弃电器电子产品处理基金支出
A53: 城乡社区支出 | B53: =B54+B69+B73+B74+B80+B84+B88+B92+B98+B101 -> 187,407
A54: 国有土地使用权出让收入安排的支出 | B54: =SUM(B55:B68) -> 184,833
A55: 征地和拆迁补偿支出 | B55: 151,505
A56: 土地开发支出 | B56: 16,541
A57: 城市建设支出
A58: 农村基础设施建设支出
A59: 补助被征地农民支出
A60: 土地出让业务支出
A61: 廉租住房支出
A62: 支付破产或改制企业职工安置费
A63: 棚户区改造支出
A64: 公共租赁住房支出
A65: 保障性住房租金补贴
A66: 农村社会发展支出 | B66: 8,179
A67: 农业农村生态环境支出 | B67: 8,608
A68: 其他国有土地使用权出让收入安排的支出
A69: 国有土地收益基金安排的支出 | B69: =SUM(B70:B72) -> 0
A70: 征地和拆迁补偿支出
A71: 土地开发支出
A72: 其他国有土地收益基金支出
A73: 农业土地开发资金安排的支出
A74: 城市基础设施配套费安排的支出 | B74: =SUM(B75:B79) -> 2,574
A75: 城市公共设施
A76: 城市环境卫生
A77: 公有房屋
A78: 城市防洪
A79: 其他城市基础设施配套费安排的支出 | B79: 2,574
A80: 污水处理费安排的支出 | B80: =SUM(B81:B83) -> 0
A81: 污水处理设施建设和运营
A82: 代征手续费
A83: 其他污水处理费安排的支出
A84: 土地储备专项债券收入安排的支出 | B84: =SUM(B85:B87) -> 0
A85: 征地和拆迁补偿支出
A86: 土地开发支出
A87: 其他土地储备专项债券收入安排的支出
A88: 棚户区改造专项债券收入安排的支出 | B88: =SUM(B89:B91) -> 0
A89: 征地和拆迁补偿支出
A90: 土地开发支出
A91: 其他棚户区改造专项债券收入安排的支出
A92: 城市基础设施配套费对应专项债务收入安排的支出 | B92: =SUM(B93:B97) -> 0
A93: 城市公共设施
A94: 城市环境卫生
A95: 公有房屋
A96: 城市防洪
A97: 其他城市基础设施配套费对应专项债务收入安排的支出
A98: 污水处理费对应专项债务收入安排的支出 | B98: =SUM(B99:B100) -> 0
A99: 污水处理设施建设和运营
A100: 其他污水处理费对应专项债务收入安排的支出
A101: 国有土地使用权出让收入对应专项债务收入安排的支出 | B101: =SUM(B102:B109) -> 0
A102: 征地和拆迁补偿支出
A103: 土地开发支出
A104: 城市建设支出
A105: 农村基础设施建设支出
A106: 廉租住房支出
A107: 棚户区改造支出
A108: 公共租赁住房支出
A109: 其他国有土地使用权出让收入对应专项债务收入安排的支出
A110: 农林水支出 | B110: =B111+B116+B121+B126+B129 -> 2,103
A111: 大中型水库库区基金安排的支出 | B111: =SUM(B112:B115) -> 0
A112: 基础设施建设和经济发展
A113: 解决移民遗留问题
A114: 库区防护工程维护
A115: 其他大中型水库库区基金支出
A116: 三峡水库库区基金支出 | B116: =SUM(B117:B120) -> 0
A117: 基础设施建设和经济发展
A118: 解决移民遗留问题
A119: 库区维护和管理
A120: 其他三峡水库库区基金支出
A121: 国家重大水利工程建设基金安排的支出 | B121: =SUM(B122:B125) -> 2,103
A122: 南水北调工程建设
A123: 三峡后续工作 | B123: 2,103
A124: 地方重大水利工程建设
A125: 其他重大水利工程建设基金支出
A126: 大中型水库库区基金对应专项债务收入安排的支出 | B126: =SUM(B127:B128) -> 0
A127: 基础设施建设和经济发展
A128: 其他大中型水库库区基金对应专项债务收入支出
A129: 国家重大水利工程建设基金对应专项债务收入安排的支出 | B129: =SUM(B130:B133) -> 0
A130: 南水北调工程建设
A131: 三峡工程后续工作
A132: 地方重大水利工程建设
A133: 其他重大水利工程建设基金对应专项债务收入支出
A134: 交通运输支出 | B134: =B135+B140+B145+B150+B159+B166+B175+B178+B181+B182 -> 0
A135: 海南省高等级公路车辆通行附加费安排的支出 | B135: =SUM(B136:B139) -> 0
A136: 公路建设
A137: 公路养护
A138: 公路还贷
A139: 其他海南省高等级公路车辆通行附加费安排的支出
A140: 车辆通行费安排的支出 | B140: =SUM(B141:B144) -> 0
A141: 公路还贷
A142: 政府还贷公路养护
A143: 政府还贷公路管理
A144: 其他车辆通行费安排的支出
A145: 港口建设费安排的支出 | B145: =SUM(B146:B149) -> 0
A146: 港口设施
A147: 航道建设和维护
A148: 航运保障系统建设
A149: 其他港口建设费安排的支出
A150: 铁路建设基金支出 | B150: =SUM(B151:B158) -> 0
A151: 铁路建设投资
A152: 购置铁路机车车辆
A153: 铁路还贷
A154: 建设项目铺底资金
A155: 勘测设计
A156: 注册资本金
A157: 周转资金
A158: 其他铁路建设基金支出
A159: 船舶油污损害赔偿基金支出 | B159: =SUM(B160:B165) -> 0
A160: 应急处置费用
A161: 控制清除污染
A162: 损失补偿
A163: 生态恢复
A164: 监视监测
A165: 其他船舶油污损害赔偿基金支出
A166: 民航发展基金支出 | B166: =SUM(B167:B174) -> 0
A167: 民航机场建设
A168: 空管系统建设
A169: 民航安全
A170: 航线和机场补贴
A171: 民航节能减排
A172: 通用航空发展
A173: 征管经费
A174: 其他民航发展基金支出
A175: 海南省高等级公路车辆通行附加费对应专项债务收入安排的支出 | B175: =SUM(B176:B177) -> 0
A176: 公路建设
A177: 其他海南省高等级公路车辆通行附加费对应专项债务收入安排的支出
A178: 政府收费公路专项债券收入安排的支出 | B178: =SUM(B179:B180) -> 0
A179: 公路建设
A180: 其他政府收费公路专项债券收入安排的支出
A181: 车辆通行费对应专项债务收入安排的支出
A182: 港口建设费对应专项债务收入安排的支出 | B182: =SUM(B183:B185) -> 0
A183: 港口设施
A184: 航运保障系统建设
A185: 其他港口建设费对应专项债务收入安排的支出
A186: 资源勘探工业信息等支出 | B186: =B187 -> 0
A187: 农网还贷资金支出 | B187: =SUM(B188:B190) -> 0
A188: 中央农网还贷资金支出
A189: 地方农网还贷资金支出
A190: 其他农网还贷资金支出
A191: 金融支出 | B191: =SUM(B192:B193) -> 0
A192: 中央特别国债经营基金支出
A193: 中央特别国债经营基金财务支出
A194: 其他支出 | B194: =B195+B199+B208 -> 0
A195: 其他政府性基金及对应专项债务收入安排的支出 | B195: =SUM(B196:B198) -> 0
A196: 其他政府性基金安排的支出
A197: 其他地方自行试点项目收益专项债券收入安排的支出
A198: 其他政府性基金债务收入安排的支出
A199: 彩票发行销售机构业务费安排的支出 | B199: =SUM(B200:B207) -> 0
A200: 福利彩票发行机构的业务费支出
... 76 more rows

Sheet 7-2023基金转移支付收支执行
A1: 表7
A2: 2023年高新区政府性基金转移支付收支执行表
D3: 单位：万元
A4: 收 入 | B4: 执行数 | C4: 支 出 | D4: 执行数
A5: 上级补助收入 | C5: 补助乡镇支出
A6: 大中型水库移民后期扶持基金 | C6: 城乡社区支出
A7: 小型水库移民扶助基金 | C7: 农林水支出
A8: 国有土地使用权出让收入 | C8: 其他支出
A9: 城市基础设施配套费
A10: 污水处理费
A11: 三峡水库库区基金
A12: 国家重大水利工程建设基金
A13: 彩票公益金
A14: 注：此表无数据。

Sheet 8-2023基金转移支付分地区
A1: 表8
A2: 2023年高新区政府性基金转移支付支出执行表
A3: （分地区）
C4: 单位：万元
A5: 乡 镇 | C5: 执行数
A6: 补助乡镇合计
A7: 涪陵高新区
A8: 注：此表无数据

Sheet 9-2023基金转移支付分项目
A1: 表9
A2: 2023年高新区政府性基金转移支付支出执行表
A3: （分项目）
B4: 单位：万元
A5: 项 目 | B5: 执行数
A6: 补助乡镇合计
A7: 1.大中型水库移民后期扶持基金
A8: 2.小型水库移民扶助基金
A9: 3.国有土地使用权出让收入
A10: 4.国有土地收益基金
A11: 5.农业土地开发资金
A12: 6.污水处理费
A13: 7.大中型水库库区基金
A14: 8.三峡水库库区基金
A15: 9.三峡后续工作专项资金
A16: 10.中央彩票公益金
A17: 注：此表无数据

Sheet 10-2023国资平衡
A1: 表10
A2: 2023年高新区国有资本经营预算收支执行表
H3: 单位：万元
A4: 收 入 | B4: 预算数 | C4: 调整 预算数 | D4: 执行数 | E4: 执行数 为调整 预算数的% | F4: 执行数为 上年决算 数的% | G4: 支 出 | H4: 预算数 | I4: 调整 预算数 | J4: 执行数 | K4: 执行数 为调整 预算数的% | L4: 执行数为 上年决算 数的%
A5: 总 计 | C5: =C6+C19 -> 56 | D5: =D6+D19 -> 56 | G5: 总 计
A6: 本级收入合计 | C6: =SUM(C7:C10) -> 56 | D6: =SUM(D7:D10) -> 56 | G6: 本级支出合计
A7: 一、利润收入 | G7: 一、解决历史遗留问题及改革成本支出
A8: 二、股利、股息收入 | G8: “三供一业”移交补助支出
A9: 三、产权转让收入 | G9: 国有企业棚户区改造支出
A10: 四、其他国有资本经营预算收入 | C10: 56 | D10: 56 | E10: =D10/C10 -> 100% | G10: 国有企业改革成本支出
G11: 其他解决历史遗留问题及改革成本支出
G12: 二、国有企业资本金注入
G13: 支持科技进步支出
G14: 其他国有企业资本金注入
G15: 三、金融国有资本经营预算支出
G16: 其他金融国有资本经营预算支出
G17: 四、其他国有资本经营预算支出
G18: 其他国有资本经营预算支出
A19: 转移性收入合计 | G19: 转移性支出合计 | I19: =SUM(I20:I22) -> 56 | J19: =SUM(J20:J22) -> 56
A20: 一、上级补助收入 | G20: 一、调出资金 | I20: 56 | J20: 56 | K20: =J20/I20 -> 100%
A21: 二、上年结转 | G21: 二、补助乡镇街道（含高新区）支出
G22: 三、结转下年
A23: 注：1.本表直观反映2023年国有资本经营预算收入与支出的平衡关系。 2.收入总计（本级收入合计+转移性收入合计）=支出总计（本级支出合计+转移性支出合计）。

Sheet 11-2023社保平衡
A1: 表11
A2: 2023年高新区社会保险基金预算收支执行表
L3: 单位：万元
A4: 收 入 | B4: 预算数 | C4: 调整 预算数 | D4: 执行数 | E4: 执行数 为调整 预算数的% | F4: 执行数为 上年决算 数的% | G4: 支 出 | H4: 预算数 | I4: 调整 预算数 | J4: 执行数 | K4: 执行数 为调整 预算数的% | L4: 执行数为 上年决算 数的%
A5: 总 计 | G5: 总 计
A6: 全区收入合计 | G6: 全区支出合计
A7: 一、基本养老保险基金收入 | G7: 一、基本养老保险基金支出 | H7: =SUM(H8:H10) -> 0
A8: 城镇企业职工基本养老保险基金 | G8: 城镇企业职工基本养老保险基金
A9: 城乡居民社会养老保险基金 | G9: 城乡居民社会养老保险基金
A10: 机关事业养老保险基金 | G10: 机关事业养老保险基金
A11: 二、基本医疗保险基金收入 | B11: =B12+B13 -> 0 | G11: 二、基本医疗保险基金支出 | H11: =H12+H13 -> 0
A12: 城镇职工基本医疗保险基金 （含生育保险） | G12: 城镇职工基本医疗保险基金（含生育保险）
A13: 城乡居民合作医疗保险基金 | G13: 城乡居民合作医疗保险基金
A14: 三、失业保险基金收入 | G14: 三、失业保险基金支出
A15: 四、工伤保险基金收入 | G15: 四、工伤保险基金支出
G16: 本年收支结余
A17: 备注：社会保险基金实行全市统筹的财政体制，相关数据由全市统一编制并向社会公开，我高新区以空表列示。

Sheet 12-2023社保结余
A1: 表12
A2: 2023年高新区社会保险基金预算结余执行表
D3: 单位：万元
A4: 项 目 | B4: 2022年决算数 | C4: 2023年执行数 | D4: 执行数为上年 决算数的%
A5: 一、企业职工基本养老保险基金本年收支结余
A6: 企业职工基本养老保险基金年末滚存结余
A7: 二、城乡居民基本养老保险基金本年收支结余
A8: 城乡居民基本养老保险基金年末滚存结余
A9: 三、机关事业单位基本养老保险基金本年收支结余
A10: 机关事业单位基本养老保险基金年末滚存结余
A11: 四、职工基本医疗保险基金本年收支结余
A12: 职工基本医疗保险基金年末滚存结余
A13: 五、居民基本医疗保险基金本年收支结余
A14: 居民基本医疗保险基金年末滚存结余
A15: 六、工伤保险基金本年收支结余
A16: 工伤保险基金年末滚存结余
A17: 七、失业保险基金本年收支结余
A18: 失业保险基金年末滚存结余
A20: 社会保险基金本年收支结余
A21: 社会保险基金年末滚存结余
A22: 备注：社会保险基金实行全市统筹的财政体制，相关数据由全市统一编制并向社会公开，我高新区以空表列示。

Sheet 13-2024公共平衡
A1: 表13
A2: 2024年高新区一般公共预算收支预算表
D3: 单位：万元
A4: 收 入 | B4: 预算数 | C4: 支 出 | D4: 预算数
A5: 总 计 | B5: =B6+B32 -> 147,983 | C5: 总 计 | D5: =D6+D32 -> 147,983
A6: 本级收入合计 | B6: =B7+B23 -> 140,383 | C6: 本级支出合计 | D6: =SUM(D7:D31) -> 137,446
A7: 一、税收收入 | B7: =SUM(B8:B22) -> 87,848 | C7: 一、一般公共服务支出 | D7: 13,970
A8: 增值税 | B8: 30,990 | C8: 二、外交支出
A9: 企业所得税 | B9: 10,287 | C9: 三、国防支出
A10: 个人所得税 | B10: 5,024 | C10: 四、公共安全支出 | D10: 700
A11: 资源税 | C11: 五、教育支出 | D11: 2,000
A12: 城市维护建设税 | B12: 7,030 | C12: 六、科学技术支出 | D12: 8,000
A13: 房产税 | B13: 6,040 | C13: 七、文化旅游体育与传媒支出 | D13: 264
A14: 印花税 | B14: 3,497 | C14: 八、社会保障和就业支出 | D14: 705
A15: 城镇土地使用税 | B15: 10,900 | C15: 九、卫生健康支出 | D15: 466
A16: 土地增值税 | B16: 400 | C16: 十、节能环保支出 | D16: 167
A17: 耕地占用税 | B17: 2,400 | C17: 十一、城乡社区支出 | D17: 13,580
A18: 契税 | B18: 11,200 | C18: 十二、农林水支出 | D18: 2,006
A19: 烟叶税 | C19: 十三、交通运输支出
A20: 环境保护税 | B20: 80 | C20: 十四、资源勘探工业信息等支出 | D20: 93,762
A21: 车船税 | C21: 十五、商业服务业等支出
A22: 其他税收收入 | C22: 十六、金融支出
A23: 二、非税收入 | B23: =SUM(B24:B30) -> 52,535 | C23: 十七、援助其他地区支出
A24: 专项收入 | C24: 十八、自然资源海洋气象等支出
A25: 行政事业性收费收入 | B25: 27 | C25: 十九、住房保障支出 | D25: 226
A26: 罚没收入 | C26: 二十、粮油物资储备支出
A27: 国有资源(资产)有偿使用收入 | B27: 52,508 | C27: 二十一、灾害防治及应急管理支出
A28: 捐赠收入 | C28: 二十二、预备费 | D28: 1,600
A29: 政府住房基金收入 | C29: 二十三、其他支出
A30: 其他收入 | C30: 二十四、债务付息支出
C31: 二十五、债务发行费用支出
A32: 转移性收入合计 | B32: =B33+B34+B35+B36+B37+B40 -> 7,600 | C32: 转移性支出合计 | D32: =D33+D34+D36 -> 10,537
A33: 一、上级补助收入 | B33: 4,451 | C33: 一、上解上级支出 | D33: 10,537
A34: 二、乡镇街道（含高新区）上解收入 | C34: 二、补助乡镇街道（含高新区）支出
A35: 三、动用预算稳定调节基金 | C35: 三、地方政府债务还本支出
A36: 四、调入资金 | C36: 地方政府债券还本支出(再融资）
A37: 五、地方政府债务收入 | C37: 四、地方政府债务转贷支出
A38: 地方政府债券收入(新增） | C38: 地方政府债券转贷支出（新增）
A39: 地方政府债券收入(再融资） | C39: 地方政府债券转贷支出（再融资）
A40: 六、上年结转 | B40: 3,149
A41: 注：1.本表直观反映2024年一般公共预算收入与支出的平衡关系。 2.收入总计（本级收入合计+转移性收入合计）=支出总计（本级支出合计+转移性支出合计）。

Sheet 14-2024公共本级支出功能
A1: 表14
A2: 2024年高新区一般公共预算支出预算表
A3: 单位：万元
A4: 支 出 | B4: 预 算 数
A5: 本级支出合计 | B5: 135,846
A6: 一般公共服务支出 | B6: 13,970
A7: 人大事务 | B7: 25
A8: 行政运行 | B8: 25
A9: 政府办公厅(室)及相关机构事务 | B9: 13,494
A10: 行政运行 | B10: 1,086
A11: 一般行政管理事务 | B11: 12,100
A12: 政务公开审批 | B12: 148
A13: 事业运行 | B13: 160
A14: 党委办公厅(室)及相关机构事务 | B14: 451
A15: 行政运行 | B15: 451
A16: 公共安全支出 | B16: 700
A17: 公安 | B17: 600
A18: 其他公安支出 | B18: 600
A19: 司法 | B19: 100
A20: 法制建设 | B20: 100
A21: 教育支出 | B21: 2,000
A22: 普通教育 | B22: 2,000
A23: 其他普通教育支出 | B23: 2,000
A24: 科学技术支出 | B24: 8,000
A25: 科技条件与服务 | B25: 8,000
A26: 其他科技条件与服务支出 | B26: 8,000
A27: 文化旅游体育与传媒支出 | B27: 264
A28: 文化和旅游 | B28: 264
A29: 群众文化 | B29: 264
A30: 社会保障和就业支出 | B30: 705
A31: 人力资源和社会保障管理事务 | B31: 245
A32: 其他人力资源和社会保障管理事务支出 | B32: 245
A33: 行政事业单位养老支出 | B33: 419
A34: 机关事业单位基本养老保险缴费支出 | B34: 245
A35: 机关事业单位职业年金缴费支出 | B35: 137
A36: 其他行政事业单位养老支出 | B36: 37
A37: 退役军人管理事务 | B37: 35
A38: 事业运行 | B38: 35
A39: 其他社会保障和就业支出 | B39: 6
A40: 其他社会保障和就业支出 | B40: 6
A41: 卫生健康支出 | B41: 466
A42: 公共卫生 | B42: 208
A43: 其他公共卫生支出 | B43: 208
A44: 行政事业单位医疗 | B44: 258
A45: 行政单位医疗 | B45: 126
A46: 事业单位医疗 | B46: 132
A47: 节能环保支出 | B47: 167
A48: 环境保护管理事务 | B48: 167
A49: 其他环境保护管理事务支出 | B49: 167
A50: 城乡社区支出 | B50: 13,580
A51: 城乡社区管理事务 | B51: 2,156
A52: 城管执法 | B52: 455
A53: 其他城乡社区管理事务支出 | B53: 1,701
A54: 城乡社区规划与管理 | B54: 1,542
A55: 城乡社区规划与管理 | B55: 1,542
A56: 城乡社区公共设施 | B56: 9,882
A57: 小城镇基础设施建设 | B57: 9,882
A58: 农林水支出 | B58: 2,006
A59: 农业农村 | B59: 376
A60: 事业运行 | B60: 357
A61: 其他农业农村支出 | B61: 19
A62: 林业和草原 | B62: 13
A63: 其他林业和草原支出 | B63: 13
A64: 水利 | B64: 53
A65: 农村水利 | B65: 53
A66: 农村综合改革 | B66: 1,564
A67: 对村民委员会和村党支部的补助 | B67: 1,564
A68: 资源勘探工业信息等支出 | B68: 93,762
A69: 支持中小企业发展和管理支出 | B69: 93,762
A70: 其他支持中小企业发展和管理支出 | B70: 93,762
A71: 住房保障支出 | B71: 226
A72: 住房改革支出 | B72: 226
A73: 住房公积金 | B73: 226
A74: 注：本表详细反映2024年一般公共预算支出情况，按预算法要求细化到功能分类项级科目。

Sheet 15-2024公共基本和项目
A1: 表15
A2: 2024年高新区一般公共预算支出预算表
A3: （按功能分类科目的基本支出和项目支出）
D4: 单位：万元
A5: 项 目 | B5: 预 算 数
B6: 小计 | C6: 基本支出 | D6: 项目支出
A7: 支出合计 | B7: =SUM(B8:B31) -> 137,446 | C7: =SUM(C8:C31) -> 3,940 | D7: =SUM(D8:D31) -> 133,506
A8: 一般公共服务支出 | B8: 13,970 | C8: 1,870 | D8: 12,100
A9: 外交支出
A10: 国防支出
A11: 公共安全支出 | B11: 700 | D11: 700
A12: 教育支出 | B12: 2,000 | D12: 2,000
A13: 科学技术支出 | B13: 8,000 | D13: 8,000
A14: 文化旅游体育与传媒支出 | B14: 264 | C14: 87 | D14: 177
A15: 社会保障和就业支出 | B15: 705 | C15: 705
A16: 医疗卫生与计划生育支出 | B16: 466 | C16: 258 | D16: 208
A17: 节能环保支出 | B17: 167 | C17: 153 | D17: 14
A18: 城乡社区支出 | B18: 13,580 | C18: 285 | D18: 13,295
A19: 农林水支出 | B19: 2,006 | C19: 356 | D19: 1,650
A20: 交通运输支出
A21: 资源勘探工业信息等支出 | B21: 93,762 | D21: 93,762
A22: 商业服务业等支出
A23: 金融支出
A24: 援助其他地区支出
A25: 国土海洋气象等支出
A26: 住房保障支出 | B26: 226 | C26: 226
A27: 粮油物资储备支出
A28: 预备费 | B28: 1,600 | D28: 1,600
A29: 其他支出
A30: 债务付息支出
A31: 债务发行费用支出
A32: 注：在功能分类的基础上，为衔接表12，将每类支出分为基本支出和项目支出。基本支出，是指部门、单位为保障其机构正常运转、完成日常工作任务所发生的支出，包括人员经费和公用经费；项目支出，是指部门、单位为完成特定的工作任务和事业发展目标，在基本支出之外所发生的支出。

Sheet 16-2024公共本级基本支出
A1: 表16
A2: 2024年高新区一般公共预算基本支出预算表
A3: （按经济分类科目）
B4: 单位：万元
A5: 支 出 | B5: 预 算 数
A6: 本级基本支出合计 | B6: 3,945
A7: 一、机关工资福利支出 | B7: 1,707
A8: 工资奖金津补贴 | B8: 1,173
A9: 社会保障缴费 | B9: 348
A10: 住房公积金 | B10: 141
A11: 其他工资福利支出 | B11: 45
A12: 二、机关商品和服务支出 | B12: 367
A13: 办公经费 | B13: 198
A14: 会议费 | B14: 10
A15: 培训费 | B15: 5
A16: 公务接待费 | B16: 4
A17: 公务用车运行维护费 | B17: 48
A18: 维修(护)费
A19: 其他商品和服务支出 | B19: 102
A20: 五、对事业单位经常性补助 | B20: 1,826
A21: 工资福利支出 | B21: 1,539
A22: 商品和服务支出 | B22: 287
A23: 九、对个人和家庭的补助 | B23: 45
A24: 社会福利和救助 | B24: 35
A25: 其他对个人和家庭的补助 | B25: 10
A26: 注：1.本表按照新的“政府预算支出经济分类科目” 将区本级基本支出细化到款级科目。 2.本表的本级基本支出合计数与表14的本级基本支出合计数相等。

Sheet 17-2024公共转移支付分地区
A1: 表17
A2: 2024年高新区一般公共预算转移支付支出预算表
A3: （分地区）
D4: 单位：万元
A5: 支 出 | B5: 转移支付合计 | C5: 一般性转移支付 | D5: 专项转移支付
A6: 补助乡镇合计
A7: 涪陵高新区
A8: 注：此表无数据

Sheet 18-2024公共转移支付分项目
A1: 表18
A2: 2024年高新区一般公共预算转移支付支出预算表
A3: （分项目）
B4: 单位：万元
A5: 支 出 | B5: 预 算 数
A6: 补助乡镇合计
A7: 一、一般性转移支付
A8: 1.税收返还
A9: 2.体制补助转移支付
A10: 2.均衡财力和激励引导转移支付
A11: 3.农业农村发展转移支付
A12: 4.收入分配改革转移支付
A13: 5.体制结算补助
A14: 6.基层政法转移支付
A15: 7.城乡义务教育等转移支付
A16: 8.城乡居民医疗保险转移支付
A17: 9.社会保障转移支付
A18: 10.其他一般性转移支付
A19: 二、专项转移支付
A20: 1.村社干部补助
A21: 2.老党员生活补助
A22: 3.四职干部养老保险
A23: 4.离任村社干部补助
A24: 5.服务群众工作经费
A25: 6.基层治理（平安及法治建设）奖补资金
A26: 注：此表无数据

Sheet 19-2024基金平衡
A1: 表19
A2: 2024年高新区政府性基金预算收支预算表
D3: 单位：万元
A4: 收 入 | B4: 预算数 | C4: 支 出 | D4: 预算数
A5: 总 计 | B5: =B6+B18 -> 298,851 | C5: 总 计 | D5: =D6+D18 -> 298,851
A6: 本级收入合计 | B6: =SUM(B7:B17) -> 281,000 | C6: 本级支出合计 | D6: =SUM(D7:D14) -> 172,726
A7: 一、农网还贷资金收入 | C7: 一、文化旅游体育与传媒支出
A8: 二、国家电影事业发展专项资金 | C8: 二、社会保障和就业支出
A9: 三、国有土地收益基金收入 | C9: 三、城乡社区支出 | D9: 171,000
A10: 四、农业土地开发资金收入 | C10: 四、农林水支出 | D10: 1,726
A11: 五、国有土地使用权出让收入 | B11: 280,000 | C11: 五、交通运输支出
A12: 六、大中型水库库区基金收入 | C12: 六、其他支出
A13: 七、彩票公益金收入 | C13: 七、债务付息支出
A14: 八、小型水库移民扶助基金收入 | C14: 八、债务发行费用支出
A15: 九、污水处理费收入
A16: 十、彩票发行机构和彩票销售机构的业务费用
A17: 十一、城市基础设施配套费收入 | B17: 1,000
A18: 转移性收入合计 | B18: =B19+B20+B21+B24 -> 17,851 | C18: 转移性支出合计 | D18: =SUM(D19:D23) -> 126,125
A19: 一、上级补助收入 | C19: 一、上解上级支出 | D19: 126,125
A20: 二、乡镇街道（含高新区）上解收入 | C20: 二、乡镇街道（含高新区）上解收入
A21: 三、地方政府债务收入 | C21: 三、调出资金
A22: 地方政府债券收入（新增） | C22: 四、地方政府债务转贷支出
A23: 地方政府债券收入(再融资） | C23: 地方政府债券转贷支出（新增）
A24: 四、上年结转 | B24: 17,851 | C24: 地方政府债券转贷支出（再融资）
A25: 注：1.本表直观反映2024年政府性基金预算收入与支出的平衡关系。 2.收入总计（本级收入合计+转移性收入合计）=支出总计（本级支出合计+转移性支出合计）。

Sheet 20-2024基金支出
A1: 表20
A2: 2023年政府性基金预算支出预算表
B3: 单位：万元
A4: 支 出 | B4: 预 算 数
A5: 政府性基金预算支出合计 | B5: 172,726
A6: 城乡社区支出 | B6: 171,000
A7: 国有土地使用权出让收入安排的支出 | B7: 171,000
A8: 征地和拆迁补偿支出 | B8: 125,000
A9: 土地开发支出 | B9: 20,000
A10: 农业生产发展支出 | B10: 16,000
A11: 农业农村生态环境支出 | B11: 10,000
A12: 农林水支出 | B12: 1,726
A13: 国家重大水利工程建设基金安排的支出 | B13: 1,726
A14: 三峡后续工作 | B14: 1,726
A15: 注：本表详细反映2024年政府性基金预算本级支出安排情况，按《预算法》要求细化到功能分类项级科目。

Sheet 21-2024基金转移支付收支预算表
A1: 表21
A2: 2024年高新区政府性基金转移支付收支预算表
D3: 单位：万元
A4: 收 入 | B4: 执行数 | C4: 支 出 | D4: 执行数
A5: 上级补助收入 | C5: 补助乡镇支出
A6: 大中型水库移民后期扶持基金
A7: 小型水库移民扶助基金
A8: 农村公路日常养护补助
A9: 铁路沿线安全环境治理
A10: 地质灾害治理工作
A11: 三峡水库库区基金
A12: 三峡后续工作
A13: 彩票公益金
A14: 注：此表无数据

Sheet 22-2024基金转移支付分地区
A1: 表22
A2: 2024年高新区政府性基金预算转移支付支出预算表
A3: （分地区）
C4: 单位：万元
A5: 乡 镇 | C5: 预算数
A6: 补助乡镇合计
A7: 崇 义
A8: 敦 仁
A9: 荔 枝
A10: 江 东
A11: 江 北
A12: 李 渡
A13: 龙 桥
A14: 白 涛
A15: 义 和
A16: 新 妙
A17: 石 沱
A18: 龙 潭
A19: 青 羊
A20: 马 武
A21: 蔺 市
A22: 焦 石
A23: 清 溪
A24: 南 沱
A25: 珍 溪
A26: 百 胜
A27: 增 福
A28: 大 顺
A29: 同 乐
A30: 武陵山
A31: 罗 云
A32: 大 木
A33: 涪陵高新区
A34: 注：本表直观反映预算安排中区级对各乡镇（街道）的补助情况。按照预算法实施条例规定，一般性转移支付应当分地区编制，转移支付应当分地区、分项目编制。此表无数据。

Sheet 23-2024基金转移支付分项目
A1: 表23
A2: 2024年高新区政府性基金预算转移支付支出预算表
A3: （分项目）
B4: 单位：万元
A5: 项 目 | B5: 预算数
A6: 补助乡镇合计
A7: 1.大中型水库移民后期扶持基金
A8: 2.小型水库移民扶助基金
A9: 3.国有土地使用权出让收入
A10: 4.国有土地收益基金
A11: 5.农业土地开发资金
A12: 6.污水处理费
A13: 7.大中型水库库区基金
A14: 8.三峡水库库区基金
A15: 9.国家重大水利工程建设基金
A16: 注：本表直观反映年初区对乡镇的转移支付分项目情况。此表无数据。

Sheet 24-2024国资平衡
A1: 表24
A2: 2024年高新区国有资本经营预算收支预算表
D3: 单位：万元
A4: 收 入 | B4: 预算数 | C4: 支 出 | D4: 预算数
A5: 总 计 | C5: 总 计
A6: 本级收入合计 | C6: 本级支出合计
A7: 一、利润收入 | C7: 一、解决历史遗留问题及改革成本支出
A8: 二、股利、股息收入 | C8: 国有企业棚户区改造
A9: 三、产权转让收入 | C9: “三供一业”移交补助支出
A10: 四、其他国有资本经营预算收入 | C10: 其他历史遗留及改革成本支出
C11: 二、国有企业资本金注入
C12: 支持科技进步支出
C13: 其他国有资本金注入
C14: 三、金融企业国有资本经营预算支出
C15: 资本性支出
C16: 其他金融国有资本经营预算支出
C17: 四、其他国有资本经营预算支出
C18: 其他国有资本经营预算支出
A19: 转移性收入合计 | B19: =B20 -> 0 | C19: 转移性支出合计
A20: 上级补助收入 | C20: 调出资金
A21: 注：1.本表直观反映2024年国有资本经营预算收入与支出的平衡关系。 2.收入总计（本级收入合计+转移性收入合计）=支出总计（本级支出合计+转移性支出合计）。 3.此表无数据。

Sheet 25-2024社保平衡
A1: 表25
A2: 2024年高新区社会保险基金预算收支预算表
D3: 单位：万元
A4: 收 入 | B4: 预算数 | C4: 支 出 | D4: 预算数
A5: 总 计 | C5: 总 计
A6: 全区收入合计 | C6: 全区支出合计
A7: 一、基本养老保险基金收入 | C7: 一、基本养老保险基金支出 | D7: =SUM(D8:D10) -> 0
A8: 城镇企业职工基本养老保险基金 | C8: 城镇企业职工基本养老保险基金
A9: 城乡居民社会养老保险基金 | C9: 城乡居民社会养老保险基金
A10: 机关事业养老保险基金 | C10: 机关事业养老保险基金
A11: 二、基本医疗保险基金收入 | B11: =B12+B13 -> 0 | C11: 二、基本医疗保险基金支出 | D11: =D12+D13 -> 0
A12: 城镇职工基本医疗保险基金 （含生育保险） | C12: 城镇职工基本医疗保险基金（含生育保险）
A13: 城乡居民合作医疗保险基金 | C13: 城乡居民合作医疗保险基金
A14: 三、失业保险基金收入 | C14: 三、失业保险基金支出
A15: 四、工伤保险基金收入 | C15: 四、工伤保险基金支出
C16: 本年收支结余
A17: 备注：社会保险基金实行全市统筹的财政体制，相关数据由全市统一编制并向社会公开，我高新区以空表列示。

Sheet 26-2024社保结余
A1: 表26
A2: 2024年高新区社会保险基金预算结余预算表
D3: 单位：万元
A4: 项 目 | B4: 2023年执行数 | C4: 2024年预算数 | D4: 执行数为上年 执行数的%
A5: 一、企业职工基本养老保险基金本年收支结余
A6: 企业职工基本养老保险基金年末滚存结余
A7: 二、城乡居民基本养老保险基金本年收支结余
A8: 城乡居民基本养老保险基金年末滚存结余
A9: 三、机关事业单位基本养老保险基金本年收支结余
A10: 机关事业单位基本养老保险基金年末滚存结余
A11: 四、职工基本医疗保险基金本年收支结余
A12: 职工基本医疗保险基金年末滚存结余
A13: 五、居民基本医疗保险基金本年收支结余
A14: 居民基本医疗保险基金年末滚存结余
A15: 六、工伤保险基金本年收支结余
A16: 工伤保险基金年末滚存结余
A17: 七、失业保险基金本年收支结余
A18: 失业保险基金年末滚存结余
A20: 社会保险基金本年收支结余
A21: 社会保险基金年末滚存结余
A22: 备注：社会保险基金实行全市统筹的财政体制，相关数据由全市统一编制并向社会公开，我高新区以空表列示。

Sheet 27-2023三公
A1: 表27
A2: 2024年高新区“三公”经费预算表
F3: 单位：万元
A4: 总计 | B4: 因公出国（境）费用 | C4: 公务用车购置及运行费 | F4: 公务接待费
C5: 小计 | D5: 公务用车购置 | E5: 公务用车运行维护费
A6: 52.00 | B6: 0.00 | C6: 52.00 | D6: 0.00 | E6: 48.00 | F6: 4.00
A7: 注：经汇总，2024年高新区各部门“三公”经费预算较2023年只减不增，严格落实中央八项规定，继续落实“过紧日子”要求，严格控 制“三公”经费支出预算。

Sheet 28-涪陵区2023年债务使用情况
A1: 表28
A2: 涪陵高新区2023年地方政府债券使用情况表
G3: 单位：万元
A4: 序号 | B4: 项目名称 | C4: 项目领域 | D4: 项目主管部门 | E4: 债券性质 | F4: 债券规模 | G4: 发行时间（年/月） | H4: 已拨付金额 | I4: 拨付进度
B5: 合计
A6: 注：此表无数据。

Sheet 29-2024新增债券安排
A1: 表29
A2: 涪陵高新区2024年年初新增地方政府债券资金安排表
A3: 单位：亿元
A4: 序号 | B4: 项目名称 | C4: 项目类型 | D4: 项目主管部门 | E4: 债券性质 | F4: 债券规模
A5: 1
A6: 2
A7: 3
A8: 注：此表无数据。
